[Event "Early-Titled-Tuesday-Blitz-September-12-2023"]
[Site "Chess.com"]
[Date "2023.09.12"]
[Round "5"]
[White "Gyulamiryan-koryun"]
[Black "MusicCityMaster"]
[Result "1-0"]
[WhiteElo "2030"]
[BlackElo "2368"]
[TimeControl "180+1"]
[EndTime "8:54:06 PDT"]
[Termination "Gyulamiryan-koryun won on time"]

1. e4 {[%clk 0:03:00.9]} 1... c5 {[%clk 0:02:58.5]} 2. Nf3 {[%clk 0:02:59.6]}
2... d6 {[%clk 0:02:58.3]} 3. d4 {[%clk 0:02:56.6]} 3... cxd4 {[%clk 0:02:59.2]}
4. Nxd4 {[%clk 0:02:56.2]} 4... Nf6 {[%clk 0:02:59.6]} 5. Nc3 {[%clk 0:02:56]}
5... a6 {[%clk 0:03:00]} 6. Be3 {[%clk 0:02:53.6]} 6... e5 {[%clk 0:02:59.4]} 7.
Nb3 {[%clk 0:02:47.5]} 7... Be6 {[%clk 0:02:58.7]} 8. f3 {[%clk 0:02:44.1]} 8...
Be7 {[%clk 0:02:58.4]} 9. Qd2 {[%clk 0:02:42.3]} 9... Nbd7 {[%clk 0:02:57.4]}
10. O-O-O {[%clk 0:02:42]} 10... Qc7 {[%clk 0:02:54.6]} 11. g4 {[%clk
0:02:41.1]} 11... b5 {[%clk 0:02:46]} 12. a3 {[%clk 0:02:32.3]} 12... Nb6 {[%clk
0:02:41.4]} 13. h4 {[%clk 0:02:30.6]} 13... O-O {[%clk 0:02:19.6]} 14. h5 {[%clk
0:02:29.9]} 14... Nc4 {[%clk 0:02:13.7]} 15. Qf2 {[%clk 0:02:08.5]} 15... Nxe3
{[%clk 0:02:01.6]} 16. Qxe3 {[%clk 0:02:08]} 16... Rfc8 {[%clk 0:01:56.5]} 17.
Kb1 {[%clk 0:02:07.5]} 17... d5 {[%clk 0:01:52.5]} 18. exd5 {[%clk 0:01:46.8]}
18... Bd7 {[%clk 0:01:03.3]} 19. d6 {[%clk 0:01:43.9]} 19... Bxd6 {[%clk
0:01:00.3]} 20. g5 {[%clk 0:01:43]} 20... Ne8 {[%clk 0:00:54.3]} 21. Bd3 {[%clk
0:01:40.3]} 21... Be6 {[%clk 0:00:49.5]} 22. g6 {[%clk 0:01:36.8]} 22... fxg6
{[%clk 0:00:45.7]} 23. hxg6 {[%clk 0:01:36.9]} 23... h6 {[%clk 0:00:45.8]} 24.
f4 {[%clk 0:01:30.2]} 24... Nf6 {[%clk 0:00:36.6]} 25. f5 {[%clk 0:01:26.9]}
25... Bxb3 {[%clk 0:00:33.1]} 26. cxb3 {[%clk 0:01:25.5]} 26... b4 {[%clk
0:00:32]} 27. Ne4 {[%clk 0:01:17.5]} 27... Be7 {[%clk 0:00:22.2]} 28. Bc4+
{[%clk 0:01:10.6]} 28... Kf8 {[%clk 0:00:21.2]} 29. Rxh6 {[%clk 0:01:05.9]}
29... gxh6 {[%clk 0:00:20.3]} 30. Qxh6+ {[%clk 0:01:06]} 30... Ke8 {[%clk
0:00:18.9]} 31. Qh8+ {[%clk 0:01:02.5]} 31... Bf8 {[%clk 0:00:17.3]} 32. Nxf6+
{[%clk 0:01:01.2]} 32... Ke7 {[%clk 0:00:17.5]} 33. Nd5+ {[%clk 0:00:59.7]} 1-0

[Event "Early-Titled-Tuesday-Blitz-September-12-2023"]
[Site "Chess.com"]
[Date "2023.09.12"]
[Round "5"]
[White "CixPer1968"]
[Black "cedchass2006"]
[Result "0-1"]
[WhiteElo "2179"]
[BlackElo "2427"]
[TimeControl "180+1"]
[EndTime "8:54:07 PDT"]
[Termination "cedchass2006 won on time"]

1. d4 {[%clk 0:02:56.2]} 1... Nf6 {[%clk 0:02:58.1]} 2. c4 {[%clk 0:02:55.8]}
2... e6 {[%clk 0:02:58]} 3. Nf3 {[%clk 0:02:55.6]} 3... d5 {[%clk 0:02:57.4]} 4.
Nc3 {[%clk 0:02:51.7]} 4... dxc4 {[%clk 0:02:56.7]} 5. e3 {[%clk 0:02:48.3]}
5... a6 {[%clk 0:02:56.7]} 6. a4 {[%clk 0:02:47.2]} 6... c5 {[%clk 0:02:55.7]}
7. Bxc4 {[%clk 0:02:47]} 7... Nc6 {[%clk 0:02:55.8]} 8. O-O {[%clk 0:02:46.1]}
8... Be7 {[%clk 0:02:52.3]} 9. Qe2 {[%clk 0:02:44.4]} 9... cxd4 {[%clk
0:02:46.6]} 10. Rd1 {[%clk 0:02:33.2]} 10... e5 {[%clk 0:02:18.8]} 11. exd4
{[%clk 0:02:30.7]} 11... exd4 {[%clk 0:02:17.3]} 12. Bg5 {[%clk 0:02:02.1]}
12... O-O {[%clk 0:02:12.3]} 13. Rac1 {[%clk 0:01:58.2]} 13... Qa5 {[%clk
0:02:06.1]} 14. Bxf6 {[%clk 0:01:51.2]} 14... Bxf6 {[%clk 0:02:02.3]} 15. Nd5
{[%clk 0:01:51.2]} 15... Bd8 {[%clk 0:01:53.7]} 16. h4 {[%clk 0:01:43.2]} 16...
Qxa4 {[%clk 0:01:41.1]} 17. h5 {[%clk 0:01:42.9]} 17... b5 {[%clk 0:01:22.8]}
18. Bd3 {[%clk 0:01:26.6]} 18... Bb7 {[%clk 0:01:19.7]} 19. h6 {[%clk
0:00:49.7]} 19... g6 {[%clk 0:01:04.8]} 20. Rxc6 {[%clk 0:00:41.7]} 20... Bxc6
{[%clk 0:01:00.6]} 21. Qe5 {[%clk 0:00:40]} 21... f6 {[%clk 0:00:55.3]} 22. Qe6+
{[%clk 0:00:32.3]} 22... Kh8 {[%clk 0:00:52.3]} 23. Qxc6 {[%clk 0:00:03.5]}
23... Qxd1+ {[%clk 0:00:51.3]} 24. Bf1 {[%clk 0:00:03]} 24... Ra7 {[%clk
0:00:42.2]} 25. Qd6 {[%clk 0:00:02.6]} 25... Raf7 {[%clk 0:00:40]} 0-1

[Event "Early-Titled-Tuesday-Blitz-September-12-2023"]
[Site "Chess.com"]
[Date "2023.09.12"]
[Round "5"]
[White "valemava"]
[Black "hongnhung1234"]
[Result "0-1"]
[WhiteElo "2295"]
[BlackElo "2497"]
[TimeControl "180+1"]
[EndTime "8:54:08 PDT"]
[Termination "hongnhung1234 won by checkmate"]

1. c4 {[%clk 0:03:00.9]} 1... f5 {[%clk 0:02:56.9]} 2. b4 {[%clk 0:02:59]} 2...
Nf6 {[%clk 0:02:56.4]} 3. Bb2 {[%clk 0:02:58.6]} 3... g6 {[%clk 0:02:56.8]} 4.
Bxf6 {[%clk 0:02:56.7]} 4... exf6 {[%clk 0:02:57.7]} 5. a3 {[%clk 0:02:52.4]}
5... a5 {[%clk 0:02:52.9]} 6. b5 {[%clk 0:02:52.2]} 6... d5 {[%clk 0:02:51.7]}
7. cxd5 {[%clk 0:02:50.1]} 7... Qxd5 {[%clk 0:02:50.3]} 8. Nc3 {[%clk
0:02:50.2]} 8... Qd8 {[%clk 0:02:49.2]} 9. e3 {[%clk 0:02:48.7]} 9... Be6 {[%clk
0:02:48.1]} 10. Nf3 {[%clk 0:02:48.2]} 10... Nd7 {[%clk 0:02:42.9]} 11. Nd4
{[%clk 0:02:47.5]} 11... Bf7 {[%clk 0:02:42.4]} 12. Qf3 {[%clk 0:02:45.7]} 12...
Rb8 {[%clk 0:02:34.7]} 13. Be2 {[%clk 0:02:44.2]} 13... Ne5 {[%clk 0:02:32.7]}
14. Qg3 {[%clk 0:02:42.5]} 14... Bd6 {[%clk 0:02:32.1]} 15. f4 {[%clk
0:02:41.7]} 15... Nc4 {[%clk 0:02:28.9]} 16. Bxc4 {[%clk 0:02:37.4]} 16... Bxc4
{[%clk 0:02:29.8]} 17. h4 {[%clk 0:02:29.8]} 17... Qd7 {[%clk 0:02:21.2]} 18.
Qf3 {[%clk 0:02:10.1]} 18... Bc5 {[%clk 0:02:18.6]} 19. h5 {[%clk 0:01:53.7]}
19... Kf7 {[%clk 0:02:13.3]} 20. Nce2 {[%clk 0:01:37.8]} 20... Bd5 {[%clk
0:02:01.2]} 21. Qh3 {[%clk 0:01:26.7]} 21... Rhg8 {[%clk 0:01:56.9]} 22. h6
{[%clk 0:01:20]} 22... Rbe8 {[%clk 0:01:54.3]} 23. O-O {[%clk 0:01:18.6]} 23...
Bc4 {[%clk 0:01:52.6]} 24. Rfd1 {[%clk 0:01:03.8]} 24... Bxb5 {[%clk 0:01:45.6]}
25. Nxb5 {[%clk 0:00:59.5]} 25... Qxb5 {[%clk 0:01:46.5]} 26. Qf3 {[%clk
0:00:57.5]} 26... b6 {[%clk 0:01:41.4]} 27. d4 {[%clk 0:00:55.9]} 27... Bd6
{[%clk 0:01:38.8]} 28. Nc3 {[%clk 0:00:52.3]} 28... Qd7 {[%clk 0:01:37.8]} 29.
a4 {[%clk 0:00:47.4]} 29... Qe6 {[%clk 0:01:37]} 30. Rd3 {[%clk 0:00:43.5]}
30... g5 {[%clk 0:01:30.3]} 31. d5 {[%clk 0:00:42.8]} 31... Qe7 {[%clk
0:01:25.5]} 32. Qh5+ {[%clk 0:00:41.9]} 32... Rg6 {[%clk 0:01:25]} 33. fxg5
{[%clk 0:00:39.2]} 33... fxg5 {[%clk 0:01:24.4]} 34. Rf1 {[%clk 0:00:38.5]}
34... Qe5 {[%clk 0:01:18]} 35. e4 {[%clk 0:00:28.8]} 35... f4 {[%clk 0:01:13.1]}
36. Rdf3 {[%clk 0:00:20]} 36... Kg8 {[%clk 0:01:11.3]} 37. Qg4 {[%clk
0:00:19.5]} 37... Rxh6 {[%clk 0:01:06.6]} 38. Ne2 {[%clk 0:00:18.6]} 38... Bc5+
{[%clk 0:01:06.1]} 39. R1f2 {[%clk 0:00:17.1]} 39... Qa1+ {[%clk 0:01:05.1]} 40.
Nc1 {[%clk 0:00:15.4]} 40... Qxc1# {[%clk 0:01:05.5]} 0-1

[Event "Early-Titled-Tuesday-Blitz-September-12-2023"]
[Site "Chess.com"]
[Date "2023.09.12"]
[Round "5"]
[White "The_Machine04"]
[Black "Fleetw00dMac"]
[Result "1-0"]
[WhiteElo "2661"]
[BlackElo "2466"]
[TimeControl "180+1"]
[EndTime "8:54:10 PDT"]
[Termination "The_Machine04 won by resignation"]

1. d4 {[%clk 0:02:20.8]} 1... Nf6 {[%clk 0:02:59.2]} 2. Nf3 {[%clk 0:02:20.7]}
2... g6 {[%clk 0:02:59]} 3. Nbd2 {[%clk 0:02:21]} 3... Bg7 {[%clk 0:02:50.3]} 4.
e4 {[%clk 0:02:21]} 4... d6 {[%clk 0:02:48.7]} 5. Bc4 {[%clk 0:02:18.6]} 5...
O-O {[%clk 0:02:47.2]} 6. O-O {[%clk 0:02:18.4]} 6... Nc6 {[%clk 0:02:44.2]} 7.
c3 {[%clk 0:02:18.4]} 7... e5 {[%clk 0:02:41.5]} 8. dxe5 {[%clk 0:02:19.3]} 8...
Nxe5 {[%clk 0:02:37.6]} 9. Nxe5 {[%clk 0:02:19.2]} 9... dxe5 {[%clk 0:02:37.5]}
10. Qe2 {[%clk 0:02:20.1]} 10... a5 {[%clk 0:02:34.5]} 11. a4 {[%clk 0:02:19.8]}
11... Re8 {[%clk 0:02:31.5]} 12. Nf3 {[%clk 0:02:18.8]} 12... h6 {[%clk
0:02:26.7]} 13. Rd1 {[%clk 0:02:18.8]} 13... Qe7 {[%clk 0:02:25.2]} 14. b3
{[%clk 0:02:19.4]} 14... Nh5 {[%clk 0:02:04.2]} 15. g3 {[%clk 0:02:10.2]} 15...
Bh3 {[%clk 0:01:58.7]} 16. Ba3 {[%clk 0:02:09]} 16... Qf6 {[%clk 0:01:57.8]} 17.
Rd3 {[%clk 0:02:08.3]} 17... Rad8 {[%clk 0:01:56.2]} 18. Rad1 {[%clk 0:02:08]}
18... Rxd3 {[%clk 0:01:55.4]} 19. Rxd3 {[%clk 0:02:08.9]} 19... Bf8 {[%clk
0:01:54.1]} 20. Bxf8 {[%clk 0:02:08.2]} 20... Kxf8 {[%clk 0:01:52.6]} 21. Qe3
{[%clk 0:02:07]} 21... Kg7 {[%clk 0:01:50]} 22. Qc5 {[%clk 0:02:04.7]} 22... Bg4
{[%clk 0:01:34.3]} 23. Kg2 {[%clk 0:02:02.5]} 23... Rd8 {[%clk 0:01:27.2]} 24.
Re3 {[%clk 0:01:51.4]} 24... Qd6 {[%clk 0:01:03.2]} 25. Qxa5 {[%clk 0:01:43.5]}
25... Bxf3+ {[%clk 0:00:55.2]} 26. Rxf3 {[%clk 0:01:41.6]} 26... Nf6 {[%clk
0:00:55.3]} 27. Qb4 {[%clk 0:01:35.6]} 27... Qxb4 {[%clk 0:00:53.7]} 28. cxb4
{[%clk 0:01:36.5]} 28... Rd4 {[%clk 0:00:48.5]} 29. a5 {[%clk 0:01:24.5]} 29...
Rxe4 {[%clk 0:00:48.1]} 30. b5 {[%clk 0:01:19.8]} 30... Re1 {[%clk 0:00:47.2]}
31. a6 {[%clk 0:01:12.7]} 31... bxa6 {[%clk 0:00:46.5]} 32. bxa6 {[%clk
0:01:13.6]} 32... Ra1 {[%clk 0:00:46.2]} 33. Rd3 {[%clk 0:01:13.8]} 33... Ne4
{[%clk 0:00:43.1]} 34. Rd7 {[%clk 0:01:12.5]} 34... Nd6 {[%clk 0:00:43]} 35. Bf1
{[%clk 0:01:07.9]} 35... Ra2 {[%clk 0:00:37.8]} 36. Rxc7 {[%clk 0:01:01]} 36...
Ne4 {[%clk 0:00:37.8]} 37. a7 {[%clk 0:01:01.2]} 37... Rxf2+ {[%clk 0:00:37.3]}
38. Kg1 {[%clk 0:01:00.9]} 38... Ra2 {[%clk 0:00:36.8]} 39. Bc4 {[%clk
0:00:58.6]} 39... Ng5 {[%clk 0:00:35.9]} 40. Bd5 {[%clk 0:00:56.4]} 40... e4
{[%clk 0:00:34.1]} 41. a8=Q {[%clk 0:00:51.7]} 41... Nf3+ {[%clk 0:00:32.6]} 42.
Kf1 {[%clk 0:00:51.6]} 42... Nxh2+ {[%clk 0:00:29]} 43. Ke1 {[%clk 0:00:51.8]}
43... Nf3+ {[%clk 0:00:28.1]} 44. Kd1 {[%clk 0:00:52.3]} 1-0

[Event "Early-Titled-Tuesday-Blitz-September-12-2023"]
[Site "Chess.com"]
[Date "2023.09.12"]
[Round "5"]
[White "Goryachkina"]
[Black "S-Fazulyanov"]
[Result "1-0"]
[WhiteElo "2670"]
[BlackElo "2464"]
[TimeControl "180+1"]
[EndTime "8:54:11 PDT"]
[Termination "Goryachkina won on time"]

1. e4 {[%clk 0:02:59.8]} 1... c5 {[%clk 0:03:00.3]} 2. Nf3 {[%clk 0:02:59.6]}
2... Nc6 {[%clk 0:02:59.6]} 3. Bb5 {[%clk 0:02:59]} 3... g6 {[%clk 0:03:00]} 4.
O-O {[%clk 0:02:58.7]} 4... Bg7 {[%clk 0:02:59.8]} 5. Re1 {[%clk 0:02:59]} 5...
Nf6 {[%clk 0:03:00]} 6. c3 {[%clk 0:02:57.9]} 6... O-O {[%clk 0:02:58.8]} 7. d4
{[%clk 0:02:54.6]} 7... d5 {[%clk 0:02:57.5]} 8. e5 {[%clk 0:02:54.5]} 8... Ne4
{[%clk 0:02:57.2]} 9. h3 {[%clk 0:02:54.4]} 9... a6 {[%clk 0:02:41]} 10. Bxc6
{[%clk 0:02:53.7]} 10... bxc6 {[%clk 0:02:41.9]} 11. Nbd2 {[%clk 0:02:53.3]}
11... cxd4 {[%clk 0:02:28.5]} 12. cxd4 {[%clk 0:02:51.2]} 12... Nxd2 {[%clk
0:02:21.3]} 13. Bxd2 {[%clk 0:02:50.5]} 13... Qb6 {[%clk 0:02:21.1]} 14. b3
{[%clk 0:02:43.7]} 14... c5 {[%clk 0:02:12.2]} 15. dxc5 {[%clk 0:02:42.6]} 15...
Qxc5 {[%clk 0:02:13.1]} 16. Rc1 {[%clk 0:02:42]} 16... Qa3 {[%clk 0:02:04.6]}
17. Rc7 {[%clk 0:02:26.7]} 17... Qxa2 {[%clk 0:01:50]} 18. Bb4 {[%clk
0:02:06.9]} 18... Bf5 {[%clk 0:01:43.1]} 19. Nd4 {[%clk 0:02:02.9]} 19... Rfc8
{[%clk 0:01:14.3]} 20. Rxe7 {[%clk 0:01:43.1]} 20... Be4 {[%clk 0:00:44]} 21. e6
{[%clk 0:01:40.1]} 21... fxe6 {[%clk 0:00:39.5]} 22. Rxg7+ {[%clk 0:01:01.2]}
22... Kxg7 {[%clk 0:00:39]} 23. Nxe6+ {[%clk 0:01:01.4]} 23... Kg8 {[%clk
0:00:26.7]} 24. Qd4 {[%clk 0:01:00.5]} 24... Kf7 {[%clk 0:00:12.4]} 25. Rxe4
{[%clk 0:00:59.1]} 25... dxe4 {[%clk 0:00:09]} 26. Qd7+ {[%clk 0:00:58.5]} 26...
Kf6 {[%clk 0:00:09.6]} 27. Be7+ {[%clk 0:00:55.6]} 1-0

[Event "Early-Titled-Tuesday-Blitz-September-12-2023"]
[Site "Chess.com"]
[Date "2023.09.12"]
[Round "5"]
[White "Polish_fighter3000"]
[Black "Zkid"]
[Result "1-0"]
[WhiteElo "3073"]
[BlackElo "2898"]
[TimeControl "180+1"]
[EndTime "8:54:13 PDT"]
[Termination "Polish_fighter3000 won by resignation"]

1. e4 {[%clk 0:03:00.9]} 1... e6 {[%clk 0:03:00]} 2. d4 {[%clk 0:02:59.8]} 2...
d5 {[%clk 0:03:00.6]} 3. Nc3 {[%clk 0:02:58.3]} 3... Bb4 {[%clk 0:03:00.4]} 4.
exd5 {[%clk 0:02:56.6]} 4... exd5 {[%clk 0:03:00.5]} 5. Bd3 {[%clk 0:02:56.8]}
5... Nc6 {[%clk 0:02:57]} 6. a3 {[%clk 0:02:53.7]} 6... Bxc3+ {[%clk 0:02:54.8]}
7. bxc3 {[%clk 0:02:54.6]} 7... Nf6 {[%clk 0:02:44.4]} 8. Ne2 {[%clk 0:02:52.7]}
8... O-O {[%clk 0:02:38.7]} 9. f3 {[%clk 0:02:48.3]} 9... Ne7 {[%clk 0:02:23.3]}
10. g4 {[%clk 0:02:48.2]} 10... c5 {[%clk 0:02:15.9]} 11. dxc5 {[%clk
0:02:46.6]} 11... Qc7 {[%clk 0:02:08.9]} 12. Rb1 {[%clk 0:02:34.4]} 12... Re8
{[%clk 0:01:51.6]} 13. Rb5 {[%clk 0:02:25.5]} 13... Ng6 {[%clk 0:01:34.2]} 14.
O-O {[%clk 0:02:15.7]} 14... Bd7 {[%clk 0:01:27.9]} 15. Rb4 {[%clk 0:02:14.5]}
15... Qxc5+ {[%clk 0:01:26]} 16. Kh1 {[%clk 0:02:15]} 16... Bc6 {[%clk
0:01:07.2]} 17. Bg5 {[%clk 0:01:29.5]} 17... Nxg4 {[%clk 0:00:55.2]} 18. Rxg4
{[%clk 0:01:28.4]} 18... Qxa3 {[%clk 0:00:50]} 19. Qd2 {[%clk 0:01:23.5]} 19...
Qd6 {[%clk 0:00:47.8]} 20. Nd4 {[%clk 0:01:22.6]} 20... Bd7 {[%clk 0:00:46.5]}
21. Rg3 {[%clk 0:01:21.2]} 21... a5 {[%clk 0:00:45.8]} 22. f4 {[%clk 0:01:19.2]}
22... f6 {[%clk 0:00:39.8]} 23. f5 {[%clk 0:01:11.1]} 23... fxg5 {[%clk
0:00:38.6]} 24. Qxg5 {[%clk 0:01:07.4]} 24... Re5 {[%clk 0:00:38.2]} 25. Nf3
{[%clk 0:01:02.1]} 25... Rae8 {[%clk 0:00:11.7]} 26. fxg6 {[%clk 0:00:47.1]}
26... Rxg5 {[%clk 0:00:11.4]} 27. gxh7+ {[%clk 0:00:47.8]} 27... Kh8 {[%clk
0:00:08.6]} 28. Nxg5 {[%clk 0:00:48.7]} 28... Be6 {[%clk 0:00:08.5]} 29. Re3
{[%clk 0:00:42.8]} 29... d4 {[%clk 0:00:06.1]} 30. Rxe6 {[%clk 0:00:42.7]} 30...
Qd5+ {[%clk 0:00:04.4]} 31. Be4 {[%clk 0:00:43.3]} 1-0

[Event "Early-Titled-Tuesday-Blitz-September-12-2023"]
[Site "Chess.com"]
[Date "2023.09.12"]
[Round "5"]
[White "sergeikim"]
[Black "secretsuperstar7"]
[Result "0-1"]
[WhiteElo "2569"]
[BlackElo "2422"]
[TimeControl "180+1"]
[EndTime "8:54:14 PDT"]
[Termination "secretsuperstar7 won by resignation"]

1. d4 {[%clk 0:03:00.9]} 1... Nf6 {[%clk 0:02:55.2]} 2. c4 {[%clk 0:03:01]} 2...
e6 {[%clk 0:02:55.2]} 3. Nc3 {[%clk 0:03:01.2]} 3... Bb4 {[%clk 0:02:53.7]} 4.
Qc2 {[%clk 0:03:01.4]} 4... b6 {[%clk 0:02:53.5]} 5. a3 {[%clk 0:03:01.7]} 5...
Bxc3+ {[%clk 0:02:53.4]} 6. Qxc3 {[%clk 0:03:02]} 6... Bb7 {[%clk 0:02:53.8]} 7.
Nf3 {[%clk 0:03:02.2]} 7... O-O {[%clk 0:02:53.8]} 8. g3 {[%clk 0:03:02.4]} 8...
d6 {[%clk 0:02:54.1]} 9. Bg2 {[%clk 0:03:02.5]} 9... Nbd7 {[%clk 0:02:53.6]} 10.
O-O {[%clk 0:03:02.3]} 10... c5 {[%clk 0:02:53.8]} 11. dxc5 {[%clk 0:03:01.7]}
11... bxc5 {[%clk 0:02:50.5]} 12. b4 {[%clk 0:02:57.8]} 12... Rc8 {[%clk
0:02:49.4]} 13. Bb2 {[%clk 0:02:48.6]} 13... d5 {[%clk 0:02:49.1]} 14. cxd5
{[%clk 0:02:41.7]} 14... cxb4 {[%clk 0:02:41.6]} 15. Qxb4 {[%clk 0:02:41.1]}
15... Bxd5 {[%clk 0:02:38.4]} 16. Qh4 {[%clk 0:02:37]} 16... Rc2 {[%clk
0:02:36.1]} 17. Bxf6 {[%clk 0:02:29.5]} 17... Qxf6 {[%clk 0:02:31]} 18. Qxf6
{[%clk 0:02:28.3]} 18... Nxf6 {[%clk 0:02:31.9]} 19. Nd4 {[%clk 0:02:26.8]}
19... Rd2 {[%clk 0:02:29.9]} 20. e3 {[%clk 0:02:26.8]} 20... Bxg2 {[%clk
0:02:21.3]} 21. Kxg2 {[%clk 0:02:26.4]} 21... Ne4 {[%clk 0:02:17.7]} 22. Rad1
{[%clk 0:02:18.9]} 22... Ra2 {[%clk 0:02:13.9]} 23. Ra1 {[%clk 0:02:18.4]} 23...
Rb2 {[%clk 0:02:09.3]} 24. Rab1 {[%clk 0:02:16.7]} 24... Rfb8 {[%clk 0:02:09]}
25. Rxb2 {[%clk 0:02:00]} 25... Rxb2 {[%clk 0:02:09.2]} 26. Nc6 {[%clk
0:01:47.1]} 26... a6 {[%clk 0:02:02.8]} 27. Nb4 {[%clk 0:01:42.6]} 27... a5
{[%clk 0:02:00.6]} 28. Nd3 {[%clk 0:01:38.1]} 28... Rb3 {[%clk 0:01:55.9]} 29.
Rd1 {[%clk 0:01:35.1]} 29... g6 {[%clk 0:01:49.8]} 30. a4 {[%clk 0:01:25.6]}
30... Ra3 {[%clk 0:01:45.3]} 31. Ne5 {[%clk 0:01:22.7]} 31... Ra2 {[%clk
0:01:41.3]} 32. Nd3 {[%clk 0:01:13.3]} 32... Rxa4 {[%clk 0:01:38]} 33. Kf3
{[%clk 0:01:13]} 33... f5 {[%clk 0:01:32]} 34. h3 {[%clk 0:01:09.8]} 34... Ra2
{[%clk 0:01:30]} 35. g4 {[%clk 0:01:09.5]} 35... a4 {[%clk 0:01:26.1]} 36. Rc1
{[%clk 0:01:01.3]} 36... Rd2 {[%clk 0:01:22.2]} 37. Rc8+ {[%clk 0:00:59.3]}
37... Kg7 {[%clk 0:01:21.2]} 38. Rd8 {[%clk 0:00:58.7]} 38... Nxf2 {[%clk
0:01:13.2]} 39. Rd7+ {[%clk 0:00:52.5]} 39... Kf8 {[%clk 0:01:01.1]} 40. Nc5
{[%clk 0:00:48.2]} 40... Rxd7 {[%clk 0:00:56.7]} 41. Nxd7+ {[%clk 0:00:47.4]}
41... Ke7 {[%clk 0:00:56.5]} 42. Nc5 {[%clk 0:00:47]} 42... Nxh3 {[%clk
0:00:50.5]} 43. Nxa4 {[%clk 0:00:45.8]} 43... Ng5+ {[%clk 0:00:49.9]} 44. Kf4
{[%clk 0:00:46.1]} 44... Kf6 {[%clk 0:00:50]} 45. gxf5 {[%clk 0:00:45.2]} 45...
exf5 {[%clk 0:00:47.5]} 46. Nc5 {[%clk 0:00:43.9]} 46... Ne6+ {[%clk 0:00:47.3]}
0-1

[Event "Early-Titled-Tuesday-Blitz-September-12-2023"]
[Site "Chess.com"]
[Date "2023.09.12"]
[Round "5"]
[White "twofoxniel"]
[Black "cthulhuuu"]
[Result "0-1"]
[WhiteElo "2620"]
[BlackElo "2475"]
[TimeControl "180+1"]
[EndTime "8:54:15 PDT"]
[Termination "cthulhuuu won by resignation"]

1. e4 {[%clk 0:03:00.9]} 1... d6 {[%clk 0:03:00.2]} 2. d4 {[%clk 0:02:56.6]}
2... Nf6 {[%clk 0:02:59.6]} 3. Nc3 {[%clk 0:02:56.1]} 3... c6 {[%clk 0:02:57.6]}
4. Nf3 {[%clk 0:02:55.7]} 4... Bg4 {[%clk 0:02:56.3]} 5. h3 {[%clk 0:02:52.7]}
5... Bh5 {[%clk 0:02:54.9]} 6. Bc4 {[%clk 0:02:46.4]} 6... e6 {[%clk 0:02:54.3]}
7. Qe2 {[%clk 0:02:46.3]} 7... d5 {[%clk 0:02:53.6]} 8. Bd3 {[%clk 0:02:35.1]}
8... dxe4 {[%clk 0:02:47.5]} 9. Nxe4 {[%clk 0:02:35.3]} 9... Nxe4 {[%clk
0:02:42.8]} 10. Qxe4 {[%clk 0:02:32.9]} 10... Bxf3 {[%clk 0:02:42.3]} 11. gxf3
{[%clk 0:02:22.7]} 11... Nd7 {[%clk 0:02:42]} 12. c3 {[%clk 0:02:22.4]} 12...
Nf6 {[%clk 0:02:41.9]} 13. Qh4 {[%clk 0:02:15.2]} 13... Be7 {[%clk 0:02:40.1]}
14. Rg1 {[%clk 0:02:11.3]} 14... g6 {[%clk 0:02:39]} 15. Qg3 {[%clk 0:01:35.2]}
15... Bd6 {[%clk 0:02:31.7]} 16. Qg5 {[%clk 0:01:30.7]} 16... Nd5 {[%clk
0:02:30.4]} 17. Qh6 {[%clk 0:01:28.7]} 17... Qf6 {[%clk 0:02:07.6]} 18. Be4
{[%clk 0:01:14.7]} 18... Bf4 {[%clk 0:02:03.5]} 19. Bxf4 {[%clk 0:01:14.6]}
19... Qxf4 {[%clk 0:01:59.3]} 20. Qg7 {[%clk 0:01:12]} 20... Qf6 {[%clk
0:01:58.9]} 21. Qh6 {[%clk 0:01:10.7]} 21... O-O-O {[%clk 0:01:58.2]} 22. h4
{[%clk 0:00:58.4]} 22... e5 {[%clk 0:01:55.9]} 23. O-O-O {[%clk 0:00:51.9]}
23... exd4 {[%clk 0:01:50.1]} 24. Rxd4 {[%clk 0:00:51.8]} 24... Nf4 {[%clk
0:01:50.3]} 25. Rxd8+ {[%clk 0:00:43.4]} 25... Rxd8 {[%clk 0:01:51]} 26. Re1
{[%clk 0:00:43.3]} 26... Ng2 {[%clk 0:01:40.9]} 27. Rh1 {[%clk 0:00:32.5]} 27...
Qf4+ {[%clk 0:01:16.1]} 28. Qxf4 {[%clk 0:00:32.2]} 28... Nxf4 {[%clk
0:01:16.8]} 29. Kc2 {[%clk 0:00:32.1]} 29... f5 {[%clk 0:01:16.1]} 30. Re1
{[%clk 0:00:20.9]} 30... fxe4 {[%clk 0:01:11.5]} 31. Rxe4 {[%clk 0:00:21.8]}
31... Nd5 {[%clk 0:01:10.6]} 32. a3 {[%clk 0:00:18.9]} 32... Rf8 {[%clk
0:00:57.3]} 33. c4 {[%clk 0:00:17.5]} 33... Nc7 {[%clk 0:00:57]} 34. f4 {[%clk
0:00:17.1]} 34... Kd7 {[%clk 0:00:55.8]} 35. Rd4+ {[%clk 0:00:17.2]} 35... Ke7
{[%clk 0:00:55.6]} 36. Re4+ {[%clk 0:00:16.6]} 36... Ne6 {[%clk 0:00:55.8]} 37.
Re5 {[%clk 0:00:11.3]} 0-1

[Event "Early-Titled-Tuesday-Blitz-September-12-2023"]
[Site "Chess.com"]
[Date "2023.09.12"]
[Round "5"]
[White "Tea99"]
[Black "CraiggoryC"]
[Result "1-0"]
[WhiteElo "2396"]
[BlackElo "2232"]
[TimeControl "180+1"]
[EndTime "8:54:16 PDT"]
[Termination "Tea99 won on time"]

1. e4 {[%clk 0:03:00.9]} 1... e6 {[%clk 0:02:54.8]} 2. d4 {[%clk 0:03:00.4]}
2... d5 {[%clk 0:02:54.5]} 3. Nc3 {[%clk 0:03:00.1]} 3... Bb4 {[%clk 0:02:27]}
4. e5 {[%clk 0:03:00]} 4... c5 {[%clk 0:02:27.1]} 5. a3 {[%clk 0:03:00.1]} 5...
Bxc3+ {[%clk 0:02:27.7]} 6. bxc3 {[%clk 0:03:01]} 6... Ne7 {[%clk 0:02:28.4]} 7.
Qg4 {[%clk 0:02:59.2]} 7... Qc7 {[%clk 0:02:28]} 8. Bd3 {[%clk 0:02:58.7]} 8...
c4 {[%clk 0:02:25.3]} 9. Be2 {[%clk 0:02:54.8]} 9... Qa5 {[%clk 0:02:25.9]} 10.
Bd2 {[%clk 0:02:53]} 10... Nf5 {[%clk 0:02:26.4]} 11. Nf3 {[%clk 0:02:46]} 11...
Nc6 {[%clk 0:02:22.2]} 12. O-O {[%clk 0:02:35.3]} 12... Bd7 {[%clk 0:02:21.3]}
13. Nh4 {[%clk 0:02:26]} 13... Nce7 {[%clk 0:02:15.5]} 14. Nf3 {[%clk
0:02:11.5]} 14... O-O-O {[%clk 0:02:09.2]} 15. Rfb1 {[%clk 0:02:03.3]} 15...
Rdg8 {[%clk 0:01:53.1]} 16. h4 {[%clk 0:02:00.7]} 16... h5 {[%clk 0:01:48.6]}
17. Qh3 {[%clk 0:02:00.6]} 17... Qd8 {[%clk 0:01:44.3]} 18. a4 {[%clk
0:01:51.2]} 18... f6 {[%clk 0:01:38]} 19. a5 {[%clk 0:01:48.6]} 19... a6 {[%clk
0:01:36]} 20. Ra2 {[%clk 0:01:41.8]} 20... Kb8 {[%clk 0:01:29.7]} 21. Rab2
{[%clk 0:01:40.3]} 21... Bc8 {[%clk 0:01:27.2]} 22. Bf4 {[%clk 0:01:28.8]} 22...
Ka7 {[%clk 0:01:07.9]} 23. exf6 {[%clk 0:01:24.3]} 23... gxf6 {[%clk 0:01:08.8]}
24. Qh2 {[%clk 0:01:23.9]} 24... Qxa5 {[%clk 0:00:27.7]} 25. Bc7 {[%clk
0:01:12.4]} 25... Qxc3 {[%clk 0:00:27.5]} 26. Bb8+ {[%clk 0:01:12.3]} 26... Ka8
{[%clk 0:00:25.3]} 27. Qc7 {[%clk 0:01:07]} 27... Nxd4 {[%clk 0:00:05.9]} 28.
Nxd4 {[%clk 0:00:48.9]} 28... Qxd4 {[%clk 0:00:06.2]} 29. Rxb7 {[%clk
0:00:44.1]} 29... Rxg2+ {[%clk 0:00:06.1]} 30. Kxg2 {[%clk 0:00:44]} 30... Rg8+
{[%clk 0:00:06.3]} 31. Kf1 {[%clk 0:00:43.8]} 1-0